[Event "FIDE Open World Rapid 2024"]
[Site "New York"]
[Date "2024.12.27"]
[Round "8.24"]
[White "Jacobson, Brandon"]
[Black "Antipov, Mikhail Al."]
[Result "1/2-1/2"]
[ECO "C48"]
[WhiteElo "2583"]
[BlackElo "2594"]
[Annotator "ChessBase"]
[PlyCount "131"]
[EventDate "2024.12.14"]
[EventType "swiss"]
[EventCountry "USA"]
[SourceTitle "playchess.com"]
[Source "ChessBase"]
[SourceQuality "1"]
[TimeControl "900+10"]

1. e4 {[%emt 0:00:03]} e5 {[%emt 0:00:03]} 2. Nf3 {[%emt 0:00:03]} Nc6 {[%emt 0:00:02]} 3. Nc3 {[%emt 0:00:07]} Nf6 {[%emt 0:00:02]} 4. Bb5 {[%emt 0:00:03]} Nd4 {[%emt 0:00:06]} 5. O-O {[%emt 0:00:07]} c6 {[%emt 0:00:31]} 6. Bc4 {[%emt 0:00:12]} d6 {[%emt 0:00:26]} 7. h3 {[%emt 0:00:03]} b5 {[%emt 0:00:24]} 8. Bb3 {[%emt 0:00:05]} a5 {[%emt 0:00:01]} 9. a3 {[%emt 0:00:07]} Nxb3 {[%emt 0:00:07]} 10. cxb3 {[%emt 0:00:02]} Qc7 {[%emt 0:01:45]} 11. d4 {[%emt 0:00:07]} Be7 {[%emt 0:01:26]} 12. Bg5 {[%emt 0:01:19]} Qb8 {[%emt 0:00:31]} 13. b4 {[%emt 0:01:56]} axb4 {[%emt 0:02:08]} 14. axb4 {[%emt 0:00:02]} Rxa1 {[%emt 0:00:01]} 15. Qxa1 {[%emt 0:00:03]} O-O {[%emt 0:00:28]} 16. d5 {[%emt 0:03:58]} Bb7 {[%emt 0:00:06]} 17. Qd1 {[%emt 0:01:38]} Rc8 {[%emt 0:01:15]} 18. Bxf6 {[%emt 0:06:01]} Bxf6 {[%emt 0:00:02]} 19. Qd3 {[%emt 0:00:02]} Bd8 {[%emt 0:02:31]} 20. Rd1 {[%emt 0:00:34]} cxd5 {[%emt 0:00:59]} 21. Nxd5 {[%emt 0:00:03]} Bc6 {[%emt 0:00:12]} 22. Nc3 {[%emt 0:01:20]} Be7 {[%emt 0:00:16]} 23. Nd2 {[%emt 0:00:08]} Bf8 {[%emt 0:01:10]} 24. Nf1 {[%emt 0:00:07]} g6 {[%emt 0:02:08]} 25. Ne3 {[%emt 0:00:06]} Qb7 {[%emt 0:00:02]} 26. Ra1 {[%emt 0:00:10]} Ra8 {[%emt 0:00:52]} 27. Ra5 {[%emt 0:00:05]} Be7 {[%emt 0:00:38]} 28. Ned5 {[%emt 0:00:27]} Bd8 {[%emt 0:00:01]} 29. Rxa8 {[%emt 0:00:41]} Qxa8 {[%emt 0:00:01]} 30. Nxb5 {[%emt 0:00:01]} Qa1+ {[%emt 0:00:11]} 31. Kh2 {[%emt 0:00:02]} Qxb2 {[%emt 0:00:19]} 32. Qc3 {[%emt 0:00:04]} Qxc3 {[%emt 0:00:15]} 33. Nbxc3 {[%emt 0:00:02]} f5 {[%emt 0:00:18]} 34. f3 {[%emt 0:00:01]} Kf7 {[%emt 0:00:09]} 35. Kg1 {[%emt 0:00:02]} Ke6 {[%emt 0:00:15]} 36. Kf2 {[%emt 0:00:01]} h5 {[%emt 0:00:18]} 37. Ke2 {[%emt 0:00:03]} Bb7 {[%emt 0:00:36]} 38. Kd3 {[%emt 0:00:05]} Ba6+ {[%emt 0:00:02]} 39. b5 {[%emt 0:00:03]} Bb7 {[%emt 0:00:00]} 40. Kc4 {[%emt 0:00:27]} Ba5 {[%emt 0:00:11]} 41. Nb4 {[%emt 0:00:05]} Kd7 {[%emt 0:00:34]} 42. Nbd5 {[%emt 0:00:27]} Ke6 {[%emt 0:00:01]} 43. b6 {[%emt 0:00:49]} Ba6+ {[%emt 0:00:29]} 44. Kb3 {[%emt 0:00:19]} Kd7 {[%emt 0:00:00]} 45. Ka4 {[%emt 0:00:17]} Bxc3 {[%emt 0:00:05]} 46. Nxc3 {[%emt 0:00:02]} Kc6 {[%emt 0:00:09]} 47. Ka5 {[%emt 0:00:06]} Bf1 {[%emt 0:00:12]} 48. Nd5 {[%emt 0:00:01]} f4 {[%emt 0:00:22]} 49. Nc7 {[%emt 0:00:21]} h4 {[%emt 0:00:24]} 50. Ne8 {[%emt 0:00:18]} g5 {[%emt 0:00:01]} 51. Nc7 {[%emt 0:00:07]} Kb7 {[%emt 0:00:09]} 52. Ne8 {[%emt 0:00:07]} Bxg2 {[%emt 0:00:20]} 53. Nxd6+ {[%emt 0:00:01]} Kb8 {[%emt 0:00:01]} 54. b7 {[%emt 0:00:27]} Bxf3 {[%emt 0:00:19]} 55. Kb6 {[%emt 0:00:04]} g4 {[%emt 0:00:13]} 56. Nf7 {[%emt 0:00:12]} Bxe4 {[%emt 0:00:06]} 57. Nxe5 {[%emt 0:00:02]} Bxb7 {[%emt 0:00:02]} 58. Nxg4 {[%emt 0:00:01]} Bg2 {[%emt 0:00:17]} 59. Nf2 {[%emt 0:00:02]} Kc8 {[%emt 0:00:03]} 60. Kc5 {[%emt 0:00:24]} Kd7 {[%emt 0:00:00]} 61. Nd3 {[%emt 0:00:01]} f3 {[%emt 0:00:06]} 62. Nf2 {[%emt 0:00:02]} Ke6 {[%emt 0:00:14]} 63. Kd4 {[%emt 0:00:01]} Kf5 {[%emt 0:00:07]} 64. Ke3 {[%emt 0:00:02]} Kg5 {[%emt 0:00:13]} 65. Ke4 {[%emt 0:00:08]} Bxh3 {[%emt 0:00:06]} 66. Kxf3 {[%emt 0:00:02]} 1/2-1/2

[Event "FIDE Open World Rapid 2024"]
[Site "New York"]
[Date "2024.12.28"]
[Round "8.24"]
[White "Urazayev, Arystanbek"]
[Black "Dlugy, Maxim"]
[Result "1/2-1/2"]
[ECO "B01"]
[WhiteElo "2470"]
[BlackElo "2514"]
[Annotator "ChessBase"]
[PlyCount "161"]
[EventDate "2024.12.14"]
[EventType "swiss"]
[EventCountry "USA"]
[SourceTitle "playchess.com"]
[Source "ChessBase"]
[SourceQuality "1"]
[TimeControl "900+10"]

1. e4 {[%emt 0:00:01]} d5 {[%emt 0:00:03]} 2. exd5 {[%emt 0:00:02]} Qxd5 {[%emt 0:00:01]} 3. Nc3 {[%emt 0:00:02]} Qd6 {[%emt 0:00:01]} 4. d4 {[%emt 0:00:02]} c6 {[%emt 0:00:01]} 5. Nf3 {[%emt 0:00:02]} Bg4 {[%emt 0:00:01]} 6. h3 {[%emt 0:00:02]} Bxf3 {[%emt 0:00:01]} 7. Qxf3 {[%emt 0:00:01]} Qxd4 {[%emt 0:00:01]} 8. Be3 {[%emt 0:00:19]} Qd8 {[%emt 0:00:02]} 9. Bd3 {[%emt 0:01:04]} Nf6 {[%emt 0:00:04]} 10. O-O-O {[%emt 0:00:06]} Nbd7 {[%emt 0:00:02]} 11. g4 {[%emt 0:01:01]} e6 {[%emt 0:00:00]} 12. Qe2 {[%emt 0:02:18]} Be7 {[%emt 0:00:13]} 13. h4 {[%emt 0:00:29]} Qa5 {[%emt 0:00:34]} 14. Kb1 {[%emt 0:00:16]} O-O-O {[%emt 0:01:06]} 15. g5 {[%emt 0:00:05]} Nd5 {[%emt 0:00:07]} 16. Bd2 {[%emt 0:00:03]} Bb4 {[%emt 0:03:37]} 17. Nxd5 {[%emt 0:00:03]} exd5 {[%emt 0:00:14]} 18. Bf4 {[%emt 0:00:04]} g6 {[%emt 0:01:11]} 19. h5 {[%emt 0:01:09]} Rhe8 {[%emt 0:00:08]} 20. Qg4 {[%emt 0:00:02]} Qb6 {[%emt 0:00:57]} 21. Ka1 {[%emt 0:01:18]} Qxf2 {[%emt 0:03:01]} 22. hxg6 {[%emt 0:00:36]} hxg6 {[%emt 0:00:02]} 23. c4 {[%emt 0:00:11]} dxc4 {[%emt 0:03:47]} 24. Bxc4 {[%emt 0:00:30]} Re7 {[%emt 0:01:22]} 25. a3 {[%emt 0:00:02]} Ba5 {[%emt 0:00:59]} 26. Rh2 {[%emt 0:01:41]} Qb6 {[%emt 0:00:01]} 27. Ka2 {[%emt 0:02:07]} Rde8 {[%emt 0:00:24]} 28. Rh7 {[%emt 0:02:22]} Qd8 {[%emt 0:00:33]} 29. Rxf7 {[%emt 0:00:24]} Bc7 {[%emt 0:00:19]} 30. Bxc7 {[%emt 0:00:46]} Kxc7 {[%emt 0:00:21]} 31. Rf6 {[%emt 0:00:57]} Ne5 {[%emt 0:00:21]} 32. Rxd8 {[%emt 0:01:58]} Nxg4 {[%emt 0:00:01]} 33. Rxe8 {[%emt 0:00:02]} Rxe8 {[%emt 0:00:01]} 34. Rxg6 {[%emt 0:00:01]} Ne5 {[%emt 0:00:01]} 35. Rg7+ {[%emt 0:00:02]} Kd6 {[%emt 0:00:00]} 36. Bb3 {[%emt 0:00:13]} Re7 {[%emt 0:00:01]} 37. Rg8 {[%emt 0:00:06]} c5 {[%emt 0:00:28]} 38. g6 {[%emt 0:00:26]} c4 {[%emt 0:00:00]} 39. Bc2 {[%emt 0:00:03]} Ke6 {[%emt 0:00:14]} 40. Rf8 {[%emt 0:00:27]} Rg7 {[%emt 0:00:12]} 41. Bf5+ {[%emt 0:00:11]} Ke7 {[%emt 0:00:01]} 42. Ra8 {[%emt 0:00:19]} Kf6 {[%emt 0:00:07]} 43. Be4 {[%emt 0:00:01]} b6 {[%emt 0:00:05]} 44. Rf8+ {[%emt 0:00:09]} Ke7 {[%emt 0:00:00]} 45. Rc8 {[%emt 0:00:05]} Kd6 {[%emt 0:00:10]} 46. a4 {[%emt 0:00:03]} Kd7 {[%emt 0:00:08]} 47. Ra8 {[%emt 0:00:10]} Kd6 {[%emt 0:00:04]} 48. Rd8+ {[%emt 0:00:18]} Ke7 {[%emt 0:00:04]} 49. Rb8 {[%emt 0:00:17]} Kd6 {[%emt 0:00:15]} 50. Rh8 {[%emt 0:00:11]} Ke7 {[%emt 0:00:17]} 51. Rh7 {[%emt 0:00:12]} Kf6 {[%emt 0:00:04]} 52. Ka3 {[%emt 0:00:07]} a5 {[%emt 0:00:40]} 53. Rh5 {[%emt 0:00:02]} Nxg6 {[%emt 0:00:12]} 54. Rb5 {[%emt 0:00:02]} Ne5 {[%emt 0:00:06]} 55. Rxb6+ {[%emt 0:00:01]} Ke7 {[%emt 0:00:00]} 56. Rb7+ {[%emt 0:00:20]} Kf6 {[%emt 0:00:01]} 57. Rb6+ {[%emt 0:00:03]} Ke7 {[%emt 0:00:02]} 58. Rb5 {[%emt 0:00:04]} Rg3+ {[%emt 0:00:02]} 59. Ka2 {[%emt 0:00:01]} Nd3 {[%emt 0:00:57]} 60. Bxd3 {[%emt 0:00:02]} Rxd3 {[%emt 0:00:11]} 61. Kb1 {[%emt 0:00:37]} Kd6 {[%emt 0:00:37]} 62. Rxa5 {[%emt 0:00:06]} Rh3 {[%emt 0:00:09]} 63. Kc2 {[%emt 0:00:09]} Kc6 {[%emt 0:00:01]} 64. Rb5 {[%emt 0:00:03]} Rg3 {[%emt 0:00:02]} 65. Rb4 {[%emt 0:00:03]} Kc5 {[%emt 0:00:01]} 66. Rb5+ {[%emt 0:00:07]} Kd4 {[%emt 0:00:02]} 67. a5 {[%emt 0:00:29]} Rg1 {[%emt 0:00:08]} 68. Rh5 {[%emt 0:00:16]} Ra1 {[%emt 0:00:16]} 69. Rh4+ {[%emt 0:00:02]} Kc5 {[%emt 0:00:01]} 70. Kc3 {[%emt 0:00:01]} Rc1+ {[%emt 0:00:01]} 71. Kd2 {[%emt 0:00:04]} Ra1 {[%emt 0:00:00]} 72. Rh8 {[%emt 0:00:47]} Rxa5 {[%emt 0:00:16]} 73. Kc3 {[%emt 0:00:01]} Ra4 {[%emt 0:00:04]} 74. Rh5+ {[%emt 0:00:08]} Kb6 {[%emt 0:00:06]} 75. Rh4 {[%emt 0:00:02]} Kb5 {[%emt 0:00:11]} 76. Rh5+ {[%emt 0:00:25]} Kb6 {[%emt 0:00:01]} 77. Rg5 {[%emt 0:00:05]} Kc6 {[%emt 0:00:04]} 78. Rg8 {[%emt 0:00:05]} Kb5 {[%emt 0:00:08]} 79. Rc8 {[%emt 0:00:08]} Ra1 {[%emt 0:00:10]} 80. Rb8+ {[%emt 0:00:12]} Kc5 {[%emt 0:00:01]} 81. Rc8+ {[%emt 0:00:23]} 1/2-1/2

[Event "FIDE Open World Rapid 2024"]
[Site "New York"]
[Date "2024.12.27"]
[Round "8.25"]
[White "Amar, Elham"]
[Black "Kacharava, Nikolozi"]
[Result "1-0"]
[ECO "C78"]
[WhiteElo "2534"]
[BlackElo "2510"]
[Annotator "ChessBase"]
[PlyCount "105"]
[EventDate "2024.12.14"]
[EventType "swiss"]
[EventCountry "USA"]
[SourceTitle "playchess.com"]
[Source "ChessBase"]
[SourceQuality "1"]
[TimeControl "900+10"]

1. e4 {[%emt 0:00:01]} e5 {[%emt 0:00:01]} 2. Nf3 {[%emt 0:00:01]} Nc6 {[%emt 0:00:02]} 3. Bb5 {[%emt 0:00:02]} a6 {[%emt 0:00:01]} 4. Ba4 {[%emt 0:00:00]} Nf6 {[%emt 0:00:02]} 5. O-O {[%emt 0:00:02]} b5 {[%emt 0:00:08]} 6. Bb3 {[%emt 0:00:01]} Bc5 {[%emt 0:00:03]} 7. c3 {[%emt 0:00:02]} d6 {[%emt 0:00:02]} 8. d4 {[%emt 0:00:04]} Bb6 {[%emt 0:00:02]} 9. Re1 {[%emt 0:00:02]} O-O {[%emt 0:01:02]} 10. Bg5 {[%emt 0:00:02]} h6 {[%emt 0:00:06]} 11. Bh4 {[%emt 0:00:01]} exd4 {[%emt 0:00:28]} 12. cxd4 {[%emt 0:00:35]} g5 {[%emt 0:00:42]} 13. Nxg5 {[%emt 0:00:27]} hxg5 {[%emt 0:02:23]} 14. Bxg5 {[%emt 0:00:01]} Nxd4 {[%emt 0:00:41]} 15. Nc3 {[%emt 0:00:28]} Nxb3 {[%emt 0:02:54]} 16. axb3 {[%emt 0:00:24]} Bxf2+ {[%emt 0:05:44]} 17. Kxf2 {[%emt 0:00:02]} Ng4+ {[%emt 0:00:01]} 18. Qxg4 {[%emt 0:00:03]} Bxg4 {[%emt 0:00:02]} 19. Bxd8 {[%emt 0:00:01]} Rfxd8 {[%emt 0:00:01]} 20. Nd5 {[%emt 0:00:05]} Be6 {[%emt 0:01:07]} 21. Nxc7 {[%emt 0:00:01]} Ra7 {[%emt 0:00:23]} 22. Nxb5 {[%emt 0:00:10]} Rb7 {[%emt 0:00:01]} 23. Nd4 {[%emt 0:00:03]} Bxb3 {[%emt 0:00:02]} 24. Re3 {[%emt 0:00:54]} Be6 {[%emt 0:00:16]} 25. b3 {[%emt 0:00:00]} Rb6 {[%emt 0:00:02]} 26. Ra5 {[%emt 0:00:42]} Rdb8 {[%emt 0:00:27]} 27. Rg5+ {[%emt 0:01:03]} Kf8 {[%emt 0:00:03]} 28. Nxe6+ {[%emt 0:00:02]} fxe6 {[%emt 0:00:01]} 29. Rf3+ {[%emt 0:00:00]} Ke8 {[%emt 0:00:15]} 30. Rgg3 {[%emt 0:00:37]} Kd7 {[%emt 0:00:24]} 31. h4 {[%emt 0:00:18]} Rb4 {[%emt 0:00:27]} 32. Re3 {[%emt 0:00:14]} Rh8 {[%emt 0:00:50]} 33. Rg7+ {[%emt 0:00:23]} Kc6 {[%emt 0:00:00]} 34. g3 {[%emt 0:00:00]} Kc5 {[%emt 0:00:00]} 35. Rc7+ {[%emt 0:01:07]} Kd4 {[%emt 0:00:01]} 36. Rc6 {[%emt 0:00:01]} Ke5 {[%emt 0:00:59]} 37. Rxa6 {[%emt 0:00:01]} Rxe4 {[%emt 0:00:31]} 38. Rxe4+ {[%emt 0:00:06]} Kxe4 {[%emt 0:00:02]} 39. Rxd6 {[%emt 0:00:01]} e5 {[%emt 0:00:02]} 40. Rd1 {[%emt 0:02:33]} Rf8+ {[%emt 0:00:29]} 41. Kg2 {[%emt 0:00:20]} Rb8 {[%emt 0:00:03]} 42. Re1+ {[%emt 0:00:31]} Kf5 {[%emt 0:00:29]} 43. Rb1 {[%emt 0:02:33]} Rb4 {[%emt 0:00:01]} 44. Kf3 {[%emt 0:00:01]} e4+ {[%emt 0:00:10]} 45. Ke3 {[%emt 0:00:01]} Kg4 {[%emt 0:00:08]} 46. Rb2 {[%emt 0:00:00]} Kf5 {[%emt 0:00:46]} 47. h5 {[%emt 0:00:05]} Rb8 {[%emt 0:00:23]} 48. b4 {[%emt 0:00:36]} Rg8 {[%emt 0:00:01]} 49. Kf2 {[%emt 0:00:02]} Kg5 {[%emt 0:00:18]} 50. b5 {[%emt 0:00:07]} Kxh5 {[%emt 0:00:03]} 51. b6 {[%emt 0:00:06]} Kg4 {[%emt 0:00:08]} 52. b7 {[%emt 0:00:02]} Rb8 {[%emt 0:00:04]} 53. Ke3 {[%emt 0:00:01]} 1-0

[Event "FIDE Open World Rapid 2024"]
[Site "New York"]
[Date "2024.12.27"]
[Round "8.25"]
[White "Gan-Erdene, Sugar"]
[Black "Bu, Xiangzhi"]
[Result "0-1"]
[ECO "C42"]
[WhiteElo "2437"]
[BlackElo "2684"]
[Annotator "ChessBase"]
[PlyCount "156"]
[EventDate "2024.12.14"]
[EventType "swiss"]
[EventCountry "USA"]
[SourceTitle "playchess.com"]
[Source "ChessBase"]
[SourceQuality "1"]
[TimeControl "900+10"]

1. e4 {[%emt 0:00:03]} e5 {[%emt 0:00:01]} 2. Nf3 {[%emt 0:00:02]} Nf6 {[%emt 0:00:03]} 3. Nxe5 {[%emt 0:00:03]} d6 {[%emt 0:00:01]} 4. Nf3 {[%emt 0:00:02]} Nxe4 {[%emt 0:00:01]} 5. Nc3 {[%emt 0:00:10]} Nxc3 {[%emt 0:00:02]} 6. dxc3 {[%emt 0:00:02]} Be7 {[%emt 0:00:01]} 7. Bf4 {[%emt 0:00:12]} Nc6 {[%emt 0:00:18]} 8. Qd2 {[%emt 0:00:04]} Be6 {[%emt 0:00:09]} 9. O-O-O {[%emt 0:00:08]} Qd7 {[%emt 0:00:02]} 10. Kb1 {[%emt 0:00:51]} a6 {[%emt 0:00:12]} 11. Bd3 {[%emt 0:00:57]} O-O-O {[%emt 0:00:24]} 12. Rhe1 {[%emt 0:00:21]} Rde8 {[%emt 0:00:38]} 13. Be4 {[%emt 0:00:28]} Bf5 {[%emt 0:02:25]} 14. Bd5 {[%emt 0:02:32]} Bf6 {[%emt 0:00:05]} 15. Nd4 {[%emt 0:00:41]} Bxd4 {[%emt 0:05:11]} 16. cxd4 {[%emt 0:00:19]} Bxc2+ {[%emt 0:01:22]} 17. Qxc2 {[%emt 0:02:02]} Nb4 {[%emt 0:00:04]} 18. Bxb7+ {[%emt 0:02:53]} Kxb7 {[%emt 0:02:06]} 19. Qb3 {[%emt 0:00:07]} Qf5+ {[%emt 0:02:13]} 20. Ka1 {[%emt 0:00:03]} a5 {[%emt 0:00:12]} 21. Bd2 {[%emt 0:02:58]} Qc2 {[%emt 0:00:20]} 22. Qf3+ {[%emt 0:02:10]} Qc6 {[%emt 0:00:06]} 23. Qxc6+ {[%emt 0:00:08]} Kxc6 {[%emt 0:00:15]} 24. Rc1+ {[%emt 0:00:30]} Kb6 {[%emt 0:01:23]} 25. Bxb4 {[%emt 0:00:25]} axb4 {[%emt 0:00:01]} 26. Kb1 {[%emt 0:00:01]} c5 {[%emt 0:00:16]} 27. Kc2 {[%emt 0:00:16]} c4 {[%emt 0:00:10]} 28. a3 {[%emt 0:00:24]} bxa3 {[%emt 0:00:17]} 29. bxa3 {[%emt 0:00:01]} Kc6 {[%emt 0:00:00]} 30. Kc3 {[%emt 0:00:28]} d5 {[%emt 0:00:04]} 31. a4 {[%emt 0:00:19]} Rxe1 {[%emt 0:00:05]} 32. Rxe1 {[%emt 0:00:01]} Rb8 {[%emt 0:00:01]} 33. Re7 {[%emt 0:00:02]} Rb7 {[%emt 0:00:07]} 34. Re8 {[%emt 0:00:40]} Rb3+ {[%emt 0:00:03]} 35. Kc2 {[%emt 0:00:08]} Ra3 {[%emt 0:00:01]} 36. Rc8+ {[%emt 0:00:13]} Kd6 {[%emt 0:00:21]} 37. Rd8+ {[%emt 0:00:14]} Kc6 {[%emt 0:01:11]} 38. Rc8+ {[%emt 0:00:02]} Kb6 {[%emt 0:00:19]} 39. Rc5 {[%emt 0:00:21]} Rxa4 {[%emt 0:00:01]} 40. Rxd5 {[%emt 0:00:02]} Ra2+ {[%emt 0:00:01]} 41. Kc3 {[%emt 0:00:01]} Rxf2 {[%emt 0:00:01]} 42. Rg5 {[%emt 0:00:02]} g6 {[%emt 0:00:11]} 43. Kxc4 {[%emt 0:00:01]} Kc6 {[%emt 0:00:04]} 44. h4 {[%emt 0:00:30]} f6 {[%emt 0:00:30]} 45. Rg4 {[%emt 0:00:05]} Kd6 {[%emt 0:00:03]} 46. g3 {[%emt 0:00:16]} Rc2+ {[%emt 0:00:17]} 47. Kd3 {[%emt 0:00:02]} Rg2 {[%emt 0:00:02]} 48. Kc4 {[%emt 0:00:15]} f5 {[%emt 0:00:16]} 49. Rf4 {[%emt 0:00:31]} Rxg3 {[%emt 0:00:01]} 50. h5 {[%emt 0:00:05]} Ke6 {[%emt 0:00:03]} 51. hxg6 {[%emt 0:00:04]} hxg6 {[%emt 0:00:03]} 52. Rf1 {[%emt 0:00:03]} Rg2 {[%emt 0:00:17]} 53. Re1+ {[%emt 0:00:07]} Kf6 {[%emt 0:00:01]} 54. d5 {[%emt 0:00:06]} f4 {[%emt 0:00:03]} 55. Rd1 {[%emt 0:00:06]} Ke7 {[%emt 0:00:12]} 56. d6+ {[%emt 0:00:04]} Kd7 {[%emt 0:00:00]} 57. Kd5 {[%emt 0:00:06]} Re2 {[%emt 0:00:11]} 58. Ra1 {[%emt 0:00:06]} f3 {[%emt 0:00:12]} 59. Ra7+ {[%emt 0:00:01]} Ke8 {[%emt 0:00:01]} 60. Ra8+ {[%emt 0:00:01]} Kf7 {[%emt 0:00:03]} 61. d7 {[%emt 0:00:44]} f2 {[%emt 0:00:48]} 62. Rf8+ {[%emt 0:00:20]} Kg7 {[%emt 0:00:13]} 63. d8=Q {[%emt 0:00:15]} Rd2+ {[%emt 0:00:00]} 64. Ke4 {[%emt 0:00:03]} Rxd8 {[%emt 0:00:00]} 65. Rxf2 {[%emt 0:00:02]} Re8+ {[%emt 0:00:00]} 66. Kd4 {[%emt 0:00:28]} g5 {[%emt 0:00:06]} 67. Kd3 {[%emt 0:00:15]} Kg6 {[%emt 0:00:02]} 68. Rg2 {[%emt 0:00:03]} Kh5 {[%emt 0:00:02]} 69. Rg1 {[%emt 0:00:16]} g4 {[%emt 0:00:04]} 70. Rh1+ {[%emt 0:00:11]} Kg5 {[%emt 0:00:00]} 71. Rh7 {[%emt 0:00:06]} g3 {[%emt 0:00:05]} 72. Rg7+ {[%emt 0:00:04]} Kf4 {[%emt 0:00:02]} 73. Kd2 {[%emt 0:00:09]} Kf3 {[%emt 0:00:01]} 74. Rf7+ {[%emt 0:00:03]} Kg2 {[%emt 0:00:01]} 75. Kd3 {[%emt 0:00:04]} Kh2 {[%emt 0:00:01]} 76. Rh7+ {[%emt 0:00:02]} Kg1 {[%emt 0:00:00]} 77. Rg7 {[%emt 0:00:06]} g2 {[%emt 0:00:01]} 78. Kd2 {[%emt 0:00:11]} Rh8 {[%emt 0:00:01]} 0-1

[Event "FIDE Open World Rapid 2024"]
[Site "New York"]
[Date "2024.12.27"]
[Round "8.26"]
[White "Paravyan, David"]
[Black "Can, Isik"]
[Result "1/2-1/2"]
[ECO "C50"]
[WhiteElo "2620"]
[BlackElo "2499"]
[Annotator "ChessBase"]
[PlyCount "93"]
[EventDate "2024.12.14"]
[EventType "swiss"]
[EventCountry "USA"]
[SourceTitle "playchess.com"]
[Source "ChessBase"]
[SourceQuality "1"]
[TimeControl "900+10"]

1. e4 {[%emt 0:00:03]} e5 {[%emt 0:00:15]} 2. Nf3 {[%emt 0:00:02]} Nc6 {[%emt 0:00:01]} 3. Bc4 {[%emt 0:00:03]} Bc5 {[%emt 0:00:03]} 4. d3 {[%emt 0:00:04]} Nf6 {[%emt 0:00:02]} 5. a4 {[%emt 0:00:04]} O-O {[%emt 0:00:16]} 6. O-O {[%emt 0:00:06]} d5 {[%emt 0:00:13]} 7. exd5 {[%emt 0:00:03]} Nxd5 {[%emt 0:00:02]} 8. Nbd2 {[%emt 0:00:02]} Nf6 {[%emt 0:01:29]} 9. Re1 {[%emt 0:01:20]} h6 {[%emt 0:00:25]} 10. c3 {[%emt 0:01:45]} a6 {[%emt 0:00:44]} 11. b4 {[%emt 0:00:26]} Bd6 {[%emt 0:00:03]} 12. Nf1 {[%emt 0:04:31]} Re8 {[%emt 0:00:26]} 13. Ng3 {[%emt 0:00:04]} Be6 {[%emt 0:00:17]} 14. Bxe6 {[%emt 0:01:13]} Rxe6 {[%emt 0:00:04]} 15. Bb2 {[%emt 0:00:27]} b5 {[%emt 0:01:06]} 16. Nh4 {[%emt 0:01:31]} Bf8 {[%emt 0:01:35]} 17. Nhf5 {[%emt 0:00:17]} Rb8 {[%emt 0:01:38]} 18. axb5 {[%emt 0:00:38]} axb5 {[%emt 0:00:03]} 19. Ne4 {[%emt 0:02:55]} Nd5 {[%emt 0:02:26]} 20. Qf3 {[%emt 0:00:14]} g6 {[%emt 0:00:49]} 21. Ne3 {[%emt 0:01:26]} Nxe3 {[%emt 0:00:47]} 22. Qxe3 {[%emt 0:00:02]} f5 {[%emt 0:02:29]} 23. Nc5 {[%emt 0:00:03]} Bxc5 {[%emt 0:00:03]} 24. bxc5 {[%emt 0:00:02]} Qg5 {[%emt 0:01:37]} 25. f4 {[%emt 0:00:58]} Qd8 {[%emt 0:01:23]} 26. fxe5 {[%emt 0:00:02]} Qd5 {[%emt 0:00:52]} 27. d4 {[%emt 0:00:06]} g5 {[%emt 0:00:09]} 28. Rf1 {[%emt 0:00:58]} f4 {[%emt 0:00:07]} 29. Qf3 {[%emt 0:00:07]} Ne7 {[%emt 0:00:23]} 30. Ra7 {[%emt 0:00:02]} Qxf3 {[%emt 0:00:07]} 31. Rxf3 {[%emt 0:00:02]} Nd5 {[%emt 0:00:01]} 32. g3 {[%emt 0:00:22]} g4 {[%emt 0:00:07]} 33. Rxf4 {[%emt 0:00:04]} Nxf4 {[%emt 0:00:02]} 34. gxf4 {[%emt 0:00:02]} Rf8 {[%emt 0:00:23]} 35. d5 {[%emt 0:00:29]} Rg6 {[%emt 0:00:01]} 36. Bc1 {[%emt 0:00:25]} g3 {[%emt 0:00:01]} 37. h3 {[%emt 0:00:04]} g2 {[%emt 0:00:25]} 38. e6 {[%emt 0:00:05]} Rf5 {[%emt 0:00:12]} 39. Ra8+ {[%emt 0:00:01]} Kh7 {[%emt 0:00:21]} 40. Rd8 {[%emt 0:00:26]} Rh5 {[%emt 0:00:09]} 41. e7 {[%emt 0:00:01]} Rxh3 {[%emt 0:00:11]} 42. Rh8+ {[%emt 0:00:02]} Kxh8 {[%emt 0:00:07]} 43. e8=Q+ {[%emt 0:00:04]} Rg8 {[%emt 0:00:04]} 44. Qe5+ {[%emt 0:00:04]} Rg7 {[%emt 0:00:02]} 45. Qe8+ {[%emt 0:00:18]} Rg8 {[%emt 0:00:02]} 46. Qe5+ {[%emt 0:00:01]} Rg7 {[%emt 0:00:01]} 47. Qe8+ {[%emt 0:00:16]} 1/2-1/2